fUST/lending_fUST_20240621
["ID","MTS","AMOUNT","RATE_DAILY","PERIOD"]
[330028397,1718953840711,-500.0,0.0005452,120]
[330028398,1718953840720,-500.0,0.0005452,120]
[330028399,1718953840730,-500.0,0.0005452,120]
[330028400,1718953840739,-500.0,0.0005452,120]
[330028401,1718953840749,-500.0,0.0005452,120]
[330028402,1718953840759,-681.05,0.0005452,120]
[330028403,1718953840769,-503.27108134,0.0005452,120]
[330028404,1718953840778,-500.0,0.0005452,120]
[330028405,1718953840788,-500.0,0.0005452,120]
[330028406,1718953840797,-593.99,0.0005452,120]
[330028407,1718953840807,-400.27161015,0.0005452,120]
[330028408,1718953840816,-500.0,0.0005452,7]
[330028409,1718953840825,-508.68253554,0.0005452,120]
[330028410,1718953840835,-500.0,0.0005452,120]
[330028411,1718953840843,-500.0,0.0005452,120]
[330028412,1718953840853,-925.08,0.0005452,120]
[330028413,1718953840863,-506.98005029,0.0005452,120]
[330028414,1718953840872,-500.0,0.0005452,120]
[330028415,1718953840882,-500.0,0.0005452,120]
[330028416,1718953840894,-294.98455101,0.0005452,120]
[330028417,1718953840904,-500.0,0.0005452,120]
[330028418,1718953840914,-500.0,0.0005452,120]
[330028419,1718953840923,-501.25766984,0.0005452,120]
[330028420,1718953840932,-500.0,0.0005452,120]
[330028421,1718953840943,-500.0,0.0005452,120]
[330028422,1718953840952,-500.0,0.0005452,120]
[330028423,1718953840963,-537.24371905,0.0005452,120]
[330028425,1718953840975,-500.0,0.0005452,120]
[330028427,1718953840985,-511.62,0.0005452,120]
[330028428,1718953840995,-511.62,0.0005452,120]
[330028429,1718953841004,-511.62,0.0005452,120]
[330028430,1718953841013,-511.62,0.0005452,120]
[330028431,1718953841022,-511.62,0.0005452,120]
[330028432,1718953841031,-500.0,0.0005452,120]
[330028433,1718953841041,-810.88,0.0005452,120]
[330028434,1718953841050,-500.0,0.0005452,60]
[330028435,1718953841059,-500.0,0.0005452,120]
[330028436,1718953841069,-1725.95,0.0005452,120]
[330028437,1718953841078,-500.0,0.0005452,120]
[330028438,1718953841087,-201.80258211,0.0005452,7]
[330028439,1718953841096,-500.0,0.0005452,120]
[330028440,1718953841106,-500.0,0.0005452,120]
[330028441,1718953841115,-500.0,0.0005452,120]
[330028442,1718953841125,-4286.73,0.0005452,120]
[330028443,1718953841134,-500.0,0.0005452,120]
[330028444,1718953841143,-1053.47,0.0005452,120]
[330028445,1718953841154,-2000.0,0.0005452,5]
[330028446,1718953841163,-509.99738062,0.0005452,120]
[330028447,1718953841172,-500.0,0.0005452,120]
[330028448,1718953841182,-1942.19226005,0.0005452,120]
[330028449,1718953841605,-128.62773995,0.0005452,120]
[330028450,1718953841615,-500.0,0.0005452,30]
[330028451,1718953841624,-504.44550167,0.0005452,120]
[330028452,1718953841633,-500.0,0.0005452,120]
[330028453,1718953841642,-500.0,0.0005452,120]
[330028454,1718953841652,-500.0,0.0005452,120]
[330028455,1718953841660,-539.6,0.0005452,120]
[330028456,1718953841669,-500.0,0.0005452,120]
[330028457,1718953841679,-500.0,0.0005452,120]
[330028458,1718953841688,-500.0,0.0005452,120]
[330028459,1718953841698,-500.0,0.0005452,120]
[330028460,1718953841707,-500.0,0.0005452,120]
[330028461,1718953841717,-500.0,0.0005452,120]
[330028462,1718953841726,-500.0,0.0005452,120]
[330028463,1718953841735,-500.0,0.0005452,120]
[330028464,1718953841745,-500.0,0.0005452,2]
[330028465,1718953841754,-500.0,0.0005452,120]
[330028466,1718953841764,-9495.85,0.0005452,120]
[330028467,1718953841773,-500.0,0.0005452,120]
[330028468,1718953841783,-500.0,0.0005452,120]
[330028469,1718953841792,-308.89077817,0.0005452,120]
[330028495,1718953844154,-613.57922183,0.0005452,120]
[330028496,1718953844164,-500.0,0.0005452,2]
[330028497,1718953844173,-500.0,0.0005452,120]
[330028498,1718953844183,-26652.37,0.0005452,120]
[330028499,1718953844193,-500.0,0.0005452,120]
[330028500,1718953844202,-1045.61,0.0005452,120]
[330028501,1718953844212,-500.0,0.0005452,120]
[330028502,1718953844232,-699.93,0.0005452,120]
[330028503,1718953844242,-500.0,0.0005452,120]
[330028505,1718953844251,-14808.46,0.0005452,120]
[330028507,1718953844261,-400.86417124,0.0005452,120]
[330028508,1718953844271,-500.0,0.0005452,120]
[330028510,1718953844281,-500.0,0.0005452,120]
[330028512,1718953844290,-500.0,0.0005452,120]
[330028513,1718953844301,-4884.62,0.0005452,120]
[330028514,1718953844311,-500.0,0.0005452,120]
[330028515,1718953844321,-3226.3,0.0005452,21]
[330028516,1718953844331,-501.55239601,0.0005452,120]
[330028517,1718953844341,-500.0,0.0005452,7]
[330028518,1718953844351,-500.0,0.0005452,120]
[330028519,1718953844361,-500.0,0.0005452,120]
[330028520,1718953844370,-504.38301024,0.0005452,120]
[330028521,1718953844379,-500.0,0.0005452,120]
[330028522,1718953844472,-500.0,0.0005452,120]
[330028523,1718953844482,-523.4,0.0005452,120]
[330028524,1718953844491,-1103.44,0.0005452,120]
[330028525,1718953844502,-500.0,0.0005452,120]
[330028526,1718953844511,-643.13870491,0.0005452,120]
[330028527,1718953844522,-5476.89,0.0005452,120]
[330028528,1718953844531,-500.0,0.0005452,120]
[330028529,1718953844541,-500.0,0.0005452,120]
[330028530,1718953844550,-507.99193293,0.0005452,120]
[330028531,1718953844559,-190.159889,0.0005452,120]
[330028532,1718953844568,-500.0,0.0005452,120]
[330028533,1718953844578,-500.0,0.0005452,120]
[330028534,1718953844587,-500.0,0.0005452,120]
[330028535,1718953844597,-2131.86,0.0005452,120]
[330028536,1718953844608,-612.2,0.0005452,120]
[330028537,1718953844619,-1340.61,0.0005452,120]
[330028538,1718953844628,-502.7601615,0.0005452,120]
[330028539,1718953844638,-500.0,0.0005452,120]
[330028540,1718953844649,-1025.31,0.0005452,120]
[330028541,1718953844658,-500.0,0.0005452,120]
[330028542,1718953844667,-500.0,0.0005452,120]
[330028543,1718953844679,-500.0,0.0005452,120]
[330028544,1718953844689,-500.0,0.0005452,120]
[330028545,1718953844699,-500.0,0.0005452,120]
[330028546,1718953844708,-513.5400611,0.0005452,120]
[330028547,1718953844718,-1731.07,0.0005452,120]
[330028548,1718953844729,-500.0,0.0005452,120]
[330028549,1718953844740,-500.0,0.0005452,120]
[330028550,1718953844749,-500.0,0.0005452,120]
[330028551,1718953844758,-503.03369081,0.0005452,120]
[330028552,1718953844768,-504.66184977,0.0005452,120]
[330028553,1718953844778,-608.56,0.0005452,120]
[330028554,1718953844788,-1206.84,0.0005452,120]
[330028555,1718953844798,-500.0,0.0005452,120]
[330028556,1718953844808,-500.0,0.0005452,120]
[330028557,1718953844817,-500.0,0.0005452,120]
[330028558,1718953844827,-500.0,0.0005452,120]
[330028559,1718953844836,-500.0,0.0005452,120]
[330028560,1718953844845,-915.56,0.0005452,120]
[330028561,1718953844855,-500.0,0.0005452,120]
[330028562,1718953844864,-1111.83,0.0005452,120]
[330028563,1718953844873,-5767.62,0.0005452,120]
[330028564,1718953844883,-500.0,0.0005452,120]
[330028565,1718953844896,-500.0,0.0005452,120]
[330028566,1718953844906,-505.2938833,0.0005452,120]
[330028567,1718953844916,-809.19,0.0005452,120]
[330028568,1718953844926,-500.0,0.0005452,120]
[330028569,1718953844936,-500.0,0.0005452,120]
[330028570,1718953844946,-500.0,0.0005452,120]
[330028571,1718953844955,-500.0,0.0005452,120]
[330028572,1718953844968,-500.0,0.0005452,120]
[330028573,1718953844981,-500.0,0.0005452,120]
[330028574,1718953844991,-500.0,0.0005452,120]
[330028575,1718953845001,-500.0,0.0005452,120]
[330028576,1718953845011,-4771.16,0.0005452,120]
[330028577,1718953845020,-500.0,0.0005452,120]
[330028578,1718953845030,-500.0,0.0005452,120]
[330028579,1718953845040,-500.0,0.0005452,120]
[330028580,1718953845049,-500.0,0.0005452,120]
[330028581,1718953845058,-500.0,0.0005452,120]
[330028582,1718953845068,-500.0,0.0005452,120]
[330028583,1718953845078,-1299.36,0.0005452,120]
[330028584,1718953845087,-500.0,0.0005452,120]
[330028585,1718953845096,-500.0,0.0005452,120]
[330028586,1718953845105,-500.0,0.0005452,120]
[330028587,1718953845115,-500.0,0.0005452,120]
[330028588,1718953845124,-500.0,0.0005452,120]
[330028589,1718953845133,-500.0,0.0005452,120]
[330028590,1718953845143,-500.0,0.0005452,120]
[330028591,1718953845152,-500.0,0.0005452,120]
[330028592,1718953845164,-508.77880017,0.0005452,120]
[330028593,1718953845174,-1022.41,0.0005452,120]
[330028594,1718953845183,-510.05401659,0.0005452,120]
[330028595,1718953845192,-500.0,0.0005452,120]
[330028596,1718953845205,-555.01711325,0.0005452,120]
[330028597,1718953845215,-490.22860968,0.0005452,120]
[330028598,1718953845224,-500.0,0.0005452,120]
[330028599,1718953845233,-500.0,0.0005452,120]
[330028600,1718953845242,-500.0,0.0005452,120]
[330028601,1718953845251,-500.0,0.0005452,120]
[330028602,1718953845260,-510.94581015,0.0005452,120]
[330028603,1718953845269,-999.01,0.0005452,120]
[330028604,1718953845278,-500.0,0.0005452,120]
[330028605,1718953845286,-500.0,0.0005452,120]
[330028606,1718953845296,-503.02679361,0.0005452,120]
[330028607,1718953845305,-505.37210151,0.0005452,120]
[330028608,1718953845314,-500.0,0.0005452,120]
[330028609,1718953845323,-500.0,0.0005452,120]
[330028610,1718953845333,-543.478441,0.0005452,120]
[330028611,1718953845342,-500.0,0.0005452,120]
[330028612,1718953845352,-567.62,0.0005452,120]
[330028613,1718953845362,-3064.14,0.0005452,120]
[330028614,1718953845371,-500.0,0.0005452,120]
[330028615,1718953845381,-526.84,0.0005452,120]
[330028616,1718953845391,-500.0,0.0005452,120]
[330028617,1718953845400,-500.0,0.0005452,120]
[330028618,1718953845414,-500.0,0.0005452,120]
[330028619,1718953845424,-500.0,0.0005452,120]
[330028620,1718953845434,-500.0,0.0005452,120]
[330028621,1718953845444,-1300.69,0.0005452,120]
[330028622,1718953845453,-444.44358262,0.0005452,120]
[330028623,1718953845463,-500.0,0.0005452,120]
[330028624,1718953845472,-1224.74,0.0005452,120]
[330028625,1718953845482,-1684.28,0.0005452,120]
[330028626,1718953845492,-1224.74,0.0005452,120]
[330028627,1718953845502,-1224.74,0.0005452,120]
[330028628,1718953845511,-500.0,0.0005452,120]
[330028629,1718953845521,-1224.74,0.0005452,120]
[330028630,1718953845530,-1224.74,0.0005452,120]
[330028631,1718953845539,-1224.74,0.0005452,120]
[330028632,1718953845549,-1224.74,0.0005452,120]
[330028633,1718953845558,-1224.74,0.0005452,120]
[330028634,1718953845567,-1224.74,0.0005452,120]
[330028635,1718953845577,-1224.74,0.0005452,120]
[330028636,1718953845587,-1224.74,0.0005452,120]
[330028637,1718953845598,-1224.74,0.0005452,120]
[330028638,1718953845607,-1224.74,0.0005452,120]
[330028639,1718953845615,-500.0,0.0005452,120]
[330028640,1718953845625,-1332.03,0.0005452,120]
[330028641,1718953845634,-542.01,0.0005452,2]
[330028642,1718953845643,-500.0,0.0005452,120]
[330028643,1718953845652,-500.0,0.0005452,120]
[330028644,1718953845664,-500.0,0.0005452,120]
[330028645,1718953845674,-500.0,0.0005452,120]
[330028646,1718953845684,-500.0,0.0005452,120]
[330028647,1718953845694,-500.0,0.00054599,120]
[330028648,1718953845703,-500.0,0.000546,120]
[330028649,1718953845713,-1224.74,0.000546,120]
[330028650,1718953845722,-500.0,0.00054601,120]
[330028651,1718953845731,-500.0,0.00054601,120]
[330028652,1718953845741,-500.0,0.00054601,120]
[330028653,1718953845751,-500.0,0.00054601,120]
[330028654,1718953845761,-290.09179027,0.00054601,120]
[330028655,1718953845771,-511.62,0.00054601,120]
[330028656,1718953845780,-511.62,0.00054601,120]
[330028657,1718953845790,-511.62,0.00054601,120]
[330028658,1718953845800,-500.0,0.00054601,120]
[330028659,1718953845809,-500.0,0.00054601,120]
[330028660,1718953845818,-500.0,0.00054601,120]
[330028661,1718953845827,-515.32,0.00054601,120]
[330028662,1718953845837,-515.32,0.00054601,120]
[330028663,1718953845846,-515.32,0.00054601,120]
[330028664,1718953845856,-500.0,0.00054601,120]
[330028665,1718953845865,-500.0,0.00054601,120]
[330028666,1718953845874,-500.0,0.00054601,120]
[330028667,1718953845884,-500.0,0.00054601,120]
[330028668,1718953845898,-500.0,0.00054601,120]
[330028669,1718953845907,-1224.74,0.00054601,120]
[330028670,1718953845917,-1224.74,0.00054601,120]
[330028671,1718953845927,-1224.74,0.00054601,120]
[330028672,1718953845938,-1224.74,0.00054601,120]
[330028673,1718953845948,-1224.74,0.00054601,120]
[330028674,1718953845957,-604.3,0.00054602,120]
[330028675,1718953845968,-500.0,0.00054602,120]
[330028676,1718953845978,-500.0,0.00054602,120]
[330028677,1718953845987,-500.0,0.00054602,120]
[330028678,1718953845996,-500.0,0.00054602,120]
[330028679,1718953846006,-500.0,0.00054602,120]
[330028680,1718953846015,-500.0,0.00054602,120]
[330028681,1718953846024,-469.41348333,0.00054602,120]
[330028682,1718953846034,-250.0,0.00054602,120]
[330028683,1718953846043,-500.0,0.00054602,120]
[330028684,1718953846053,-503.09177074,0.00054602,120]
[330028685,1718953846063,-500.0,0.00054602,120]
[330028686,1718953846072,-500.0,0.00054602,120]
[330028687,1718953846081,-163.20027686,0.00054602,120]
[330028688,1718953846091,-509.36391255,0.00054602,120]
[330028689,1718953846101,-536.47091871,0.00054602,120]
[330028690,1718953846110,-1458.33,0.00054602,120]
[330028691,1718953846119,-500.0,0.00054602,120]
[330028692,1718953846200,-513.16946392,0.00054602,120]
[330028693,1718953846211,-517.23,0.00054602,120]
[330028694,1718953846220,-500.0,0.00054602,120]
[330028695,1718953846229,-257.7068437,0.00054602,120]
[330028696,1718953846239,-500.0,0.00054602,120]
[330028697,1718953846248,-509.6238209,0.00054602,120]
[330028698,1718953846258,-1317.48,0.00054602,120]
[330028699,1718953846267,-500.0,0.00054602,120]
[330028700,1718953846276,-990.63,0.00054602,120]
[330028701,1718953846285,-500.0,0.00054602,120]
[330028702,1718953846294,-1097.36,0.00054602,120]
[330028704,1718953846303,-500.0,0.00054602,120]
[330028706,1718953846312,-204.23115147,0.00054602,7]
[330028707,1718953846321,-500.0,0.00054602,120]
[330028708,1718953846331,-500.0,0.00054602,120]
[330028709,1718953846340,-500.0,0.00054602,120]
[330028711,1718953846350,-500.0,0.00054602,120]
[330028713,1718953846359,-525.51853251,0.00054602,120]
[330028715,1718953846368,-500.0,0.00054602,120]
[330028717,1718953846378,-3646.33,0.00054602,120]
[330028718,1718953846387,-500.0,0.00054602,120]
[330028719,1718953846396,-500.0,0.00054602,120]
[330028720,1718953846405,-500.0,0.00054602,120]
[330028721,1718953846415,-1115.99,0.00054602,120]
[330028722,1718953846424,-554.24,0.00054602,120]
[330028723,1718953846434,-500.0,0.00054602,120]
[330028724,1718953846444,-500.0,0.00054602,30]
[330028725,1718953846453,-500.0,0.00054602,120]
[330028726,1718953846463,-500.0,0.00054602,120]
[330028727,1718953846472,-500.0,0.00054602,120]
[330028728,1718953846483,-500.0,0.00054602,120]
[330028729,1718953846492,-500.0,0.00054602,120]
[330028730,1718953846502,-500.0,0.00054602,120]
[330028731,1718953846512,-236.15625101,0.00054602,120]
[330028732,1718953846522,-500.0,0.00054602,120]
[330028733,1718953846531,-575.18,0.00054602,120]
[330028734,1718953846541,-336.23092983,0.00054602,120]
[330028735,1718953846551,-511.81219255,0.00054602,120]
[330028736,1718953846561,-500.0,0.00054602,120]
[330028737,1718953846570,-500.0,0.00054602,120]
[330028738,1718953846580,-500.0,0.00054602,120]
[330028739,1718953846589,-604.33,0.00054602,120]
[330028741,1718953846599,-637.3,0.00054602,120]
[330028743,1718953846608,-500.0,0.00054602,120]
[330028744,1718953846618,-500.0,0.00054602,120]
[330028745,1718953846628,-1004.74,0.00054602,120]
[330028746,1718953846637,-630.47,0.00054602,120]
[330028747,1718953846647,-744.74,0.00054602,120]
[330028748,1718953846658,-500.0,0.00054602,120]
[330028749,1718953846668,-500.0,0.00054602,120]
[330028750,1718953846677,-500.0,0.00054602,120]
[330028751,1718953846687,-534.2,0.00054602,120]
[330028752,1718953846697,-600.0,0.00054602,120]
[330028753,1718953846706,-500.0,0.00054602,120]
[330028754,1718953846715,-1201.92,0.00054602,120]
[330028755,1718953846725,-507.80413817,0.00054602,120]
[330028756,1718953846734,-1423.05,0.00054602,120]
[330028757,1718953846743,-1744.69,0.00054602,120]
[330028758,1718953846753,-500.0,0.00054602,120]
[330028759,1718953846763,-391.45217375,0.00054602,120]
[330028760,1718953846772,-500.0,0.00054602,20]
[330028761,1718953846782,-500.0,0.00054602,120]
[330028762,1718953846791,-1030.75,0.00054602,120]
[330028763,1718953846801,-459.81831608,0.00054602,120]
[330028764,1718953846811,-500.0,0.00054602,120]
[330028765,1718953846820,-500.0,0.00054602,120]
[330028766,1718953846829,-500.0,0.00054602,120]
[330028767,1718953846839,-502.90568506,0.00054602,120]
[330028768,1718953846848,-681.05,0.00054602,120]
[330028769,1718953846857,-500.0,0.00054602,120]
[330028771,1718953846867,-500.0,0.00054602,120]
[330028773,1718953846876,-593.99,0.00054602,120]
[330028775,1718953846886,-500.0,0.00054602,7]
[330028777,1718953846899,-500.0,0.00054602,120]
[330028779,1718953846908,-500.0,0.00054602,120]
[330028781,1718953846917,-925.08,0.00054602,120]
[330028783,1718953846927,-500.0,0.00054602,120]
[330028785,1718953846937,-500.0,0.00054602,120]
[330028787,1718953846947,-500.0,0.00054602,120]
[330028788,1718953846956,-491.95155407,0.00054602,120]
[330028789,1718953846965,-500.0,0.00054602,120]
[330028790,1718953846978,-500.0,0.00054602,120]
[330028791,1718953846987,-500.0,0.00054602,120]
[330028792,1718953846996,-810.88,0.00054602,120]
[330028793,1718953847006,-500.0,0.00054602,60]
[330028794,1718953847015,-500.0,0.00054602,120]
[330028795,1718953847025,-500.0,0.00054602,120]
[330028796,1718953847034,-500.0,0.00054602,120]
[330028797,1718953847043,-212.475821,0.00054602,14]
[330028798,1718953847052,-500.0,0.00054602,120]
[330028799,1718953847061,-212.475821,0.00054602,14]
[330028800,1718953847071,-500.0,0.00054602,120]
[330028801,1718953847080,-4286.73,0.00054602,120]
[330028802,1718953847089,-1053.47,0.00054602,120]
[330028803,1718953847099,-2000.0,0.00054602,5]
[330028804,1718953847108,-2070.82,0.00054602,120]
[330028805,1718953847118,-501.92431514,0.00054602,30]
[330028806,1718953847127,-872.377517,0.00054602,14]
[330028807,1718953847136,-500.0,0.00054602,120]
[330028808,1718953847145,-500.0,0.00054602,120]
[330028809,1718953847155,-500.0,0.00054602,120]
[330028810,1718953847165,-872.377517,0.00054602,14]
[330028811,1718953847174,-151.0,0.00054602,14]
[330028812,1718953847183,-539.6,0.00054602,120]
[330028813,1718953847192,-500.0,0.00054602,120]
[330028814,1718953847202,-500.0,0.00054602,120]
[330028815,1718953847211,-526.79111681,0.00054602,2]
[330028816,1718953847220,-9495.85,0.00054602,120]
[330028817,1718953847230,-500.0,0.00054602,120]
[330028818,1718953847239,-922.47,0.00054602,120]
[330028819,1718953847249,-500.0,0.00054602,2]
[330028820,1718953847259,-500.0,0.00054602,120]
[330028821,1718953847269,-11051.2298923,0.00054602,120]
[330028822,1718953847286,-10384.36922292,0.00054602,120]
[330028823,1718953847414,347.972416,0.00039769,2]
[330028824,1718953847512,-5216.77088478,0.00054602,120]
[330028825,1718953847522,-500.0,0.00054602,120]
[330028826,1718953847531,-1045.61,0.00054602,120]
[330028827,1718953847541,-500.0,0.00054602,120]
[330028828,1718953847550,-699.93,0.00054602,120]
[330028829,1718953847560,-500.0,0.00054602,120]
[330028830,1718953847569,-14808.46,0.00054602,120]
[330028831,1718953847580,-151.0,0.00054602,14]
[330028832,1718953847589,-500.0,0.00054602,120]
[330028833,1718953847599,-4884.62,0.00054602,120]
[330028834,1718953847608,-151.0,0.00054602,14]
[330028835,1718953847617,-151.0,0.00054602,14]
[330028836,1718953847626,-500.0,0.00054602,120]
[330028837,1718953847635,-3226.3,0.00054602,21]
[330028838,1718953847644,-151.0,0.00054602,14]
[330028839,1718953847654,-500.0,0.00054602,7]
[330028840,1718953847664,-535.4504659,0.00054602,120]
[330028841,1718953847673,-500.0,0.00054602,120]
[330028842,1718953847682,-500.0,0.00054602,120]
[330028843,1718953847692,-523.4,0.00054602,120]
[330028844,1718953847702,-1103.44,0.00054602,120]
[330028845,1718953847711,-502.16440813,0.00054602,120]
[330028846,1718953847790,-5476.89,0.00054602,120]
[330028847,1718953847800,-439.28333055,0.00054602,120]
[330028848,1718953847810,-840.010259,0.00054602,14]
[330028849,1718953847820,-500.0,0.00054602,120]
[330028850,1718953847829,-840.010259,0.00054602,14]
[330028851,1718953847840,-500.0,0.00054602,120]
[330028852,1718953847849,-500.0,0.00054602,120]
[330028853,1718953847859,-2131.86,0.00054602,120]
[330028854,1718953847868,-612.2,0.00054602,120]
[330028855,1718953847878,-1340.61,0.00054602,120]
[330028856,1718953847888,-500.0,0.00054602,120]
[330028857,1718953847903,-1025.31,0.00054602,120]
[330028858,1718953847913,-500.0,0.00054602,120]
[330028859,1718953847923,-151.0,0.00054602,14]
[330028860,1718953847933,-545.30878864,0.00054602,120]
[330028861,1718953847942,-500.0,0.00054602,120]
[330028862,1718953847951,-500.0,0.00054602,120]
[330028863,1718953847962,-151.0,0.00054602,14]
[330028864,1718953847972,-1731.07,0.00054602,120]
[330028865,1718953847984,-500.0,0.00054602,120]
[330028866,1718953847993,-510.99609868,0.00054602,120]
[330028867,1718953848004,-500.0,0.00054602,120]
[330028868,1718953848013,-608.56,0.00054602,120]
[330028869,1718953848023,-1206.84,0.00054602,120]
[330028870,1718953848032,-500.0,0.00054602,120]
[330028871,1718953848042,-500.0,0.00054602,120]
[330028872,1718953848052,-500.0,0.00054602,120]
[330028873,1718953848061,-500.0,0.00054602,120]
[330028874,1718953848072,-915.56,0.00054602,120]
[330028875,1718953848081,-500.0,0.00054602,120]
[330028876,1718953848091,-1111.83,0.00054602,120]
[330028877,1718953848101,-5767.62,0.00054602,120]
[330028878,1718953848110,-500.0,0.00054602,120]
[330028879,1718953848121,-500.0,0.00054602,120]
[330028880,1718953848130,-809.19,0.00054602,120]
[330028881,1718953848142,-500.0,0.00054602,120]
[330028882,1718953848151,-4771.16,0.00054602,120]
[330028883,1718953848162,-1299.36,0.00054602,120]
[330028884,1718953848171,-1246.768377,0.00054602,14]
[330028885,1718953848187,-1246.768377,0.00054602,14]
[330028886,1718953848196,-500.0,0.00054602,120]
[330028887,1718953848206,-500.0,0.00054602,120]
[330028888,1718953848216,-336.56204809,0.00054602,120]
[330028889,1718953848226,-500.0,0.00054602,120]
[330028890,1718953848235,-500.0,0.00054602,120]
[330028891,1718953848244,-1022.41,0.00054602,120]
[330028892,1718953848255,-500.0,0.00054602,120]
[330028893,1718953848263,-500.0,0.00054602,120]
[330028894,1718953848272,-510.12029792,0.00054602,120]
[330028895,1718953848283,-999.01,0.00054602,120]
[330028896,1718953848292,-500.0,0.00054602,120]
[330028897,1718953848302,-500.0,0.00054602,120]
[330028898,1718953848312,-500.0,0.00054602,120]
[330028899,1718953848322,-500.0,0.00054602,120]
[330028900,1718953848332,-567.62,0.00054602,120]
[330028901,1718953848341,-3064.14,0.00054602,120]
[330028902,1718953848351,-500.0,0.00054602,120]
[330028903,1718953848360,-526.84,0.00054602,120]
[330028904,1718953848370,-500.0,0.00054602,120]
[330028905,1718953848379,-500.0,0.00054602,120]
[330028906,1718953848389,-500.0,0.00054602,120]
[330028907,1718953848398,-500.0,0.00054602,120]
[330028908,1718953848410,-500.0,0.00054602,120]
[330028909,1718953848419,-1300.69,0.00054602,120]
[330028910,1718953848428,-1684.28,0.00054602,120]
[330028911,1718953848437,-500.0,0.00054602,120]
[330028912,1718953848446,-1332.03,0.00054602,120]
[330028913,1718953848455,-542.01,0.00054602,2]
[330028914,1718953848464,-500.0,0.00054602,120]
[330028915,1718953848476,-500.0,0.00054602,120]
[330028916,1718953848486,-500.0,0.00054602,120]
[330028917,1718953848495,-500.0,0.00054602,120]
[330028918,1718953848504,-500.0,0.00054602,120]
[330028919,1718953848514,-500.0,0.00054666,120]
[330028920,1718953848523,-585.99,0.00054666,120]
[330028921,1718953848532,-151.0,0.00054682,14]
[330028922,1718953848541,-151.0,0.00054682,14]
[330028923,1718953848550,-151.0,0.00054683,14]
[330028924,1718953848559,-151.0,0.00054683,14]
[330028925,1718953848568,-295.719389,0.00054683,14]
[330028926,1718953848578,-295.719389,0.00054683,14]
[330028927,1718953848588,-500.0,0.00054683,120]
[330028928,1718953848597,-500.0,0.00054683,120]
[330028929,1718953848607,-596.18,0.00054683,120]
[330028930,1718953848616,-515.32,0.00054683,120]
[330028931,1718953848625,-515.32,0.00054683,120]
[330028932,1718953848635,-515.32,0.00054683,120]
[330028933,1718953848643,-500.0,0.00054683,120]
[330028934,1718953848653,-262.83,0.00054683,120]
[330028935,1718953848664,-1224.74,0.00054683,120]
[330028936,1718953848674,-1224.74,0.00054683,120]
[330028937,1718953848683,-1224.74,0.00054683,120]
[330028938,1718953848693,-1224.74,0.00054683,120]
[330028939,1718953848703,-1224.95120233,0.00054683,120]
[330028940,1718953848712,-604.3,0.00054684,120]
[330028941,1718953848723,-500.0,0.00054684,120]
[330028942,1718953848733,-500.0,0.00054684,120]
[330028943,1718953848743,-500.0,0.00054684,120]
[330028944,1718953848753,-500.0,0.00054684,120]